bitfinex/quotes_ETHUSD_20240709
["timestamp","ask_amount","ask_price","bid_price","bid_amount"]
[1720534525488,810.73414931,3110.0,3107.7,3.94201]
[1720534525489,810.73414931,3110.0,3108.1,3.21734]
[1720534525787,810.73414931,3110.0,3109.1,3.21629]
[1720534526037,810.73414931,3110.0,3109.6,3.21583]
[1720534526187,810.73414931,3110.0,3109.9,12.86212]
[1720534526388,810.73414931,3110.0,3109.9,9.64659]
[1720534526724,810.73414931,3110.0,3109.9,12.86212]
[1720534526955,809.98414931,3110.0,3109.9,16.80194]
[1720534527087,808.03493406,3110.0,3109.9,20.67212602]
[1720534527289,807.26719573,3110.0,3109.9,20.49727898]
[1720534527630,807.26719573,3110.0,3109.9,23.54479602]
[1720534528003,807.26719573,3110.0,3109.9,23.58442296]
[1720534528332,804.88046175,3110.0,3109.9,23.58442296]
[1720534528488,804.88046175,3110.0,3109.9,16.22960296]
[1720534528690,804.88046175,3110.0,3109.9,15.86212]
[1720534528888,801.89708428,3110.0,3109.9,15.86212]
[1720534529089,801.89708428,3110.0,3109.9,19.80194]
[1720534529405,801.34708428,3110.0,3109.9,20.19525629]
[1720534529597,801.05413785,3110.0,3109.9,24.34987842]
[1720534529791,801.05413785,3110.0,3109.9,16.25543629]
[1720534530138,801.05413785,3110.0,3109.9,10.03990629]
[1720534530441,801.05413785,3110.0,3109.9,6.43106]
[1720534530927,801.05413785,3110.0,3109.9,3.21553]
[1720534531132,801.05413785,3110.0,3109.5,3.21587]
[1720534531300,801.05413785,3110.0,3108.6,3.21685]
[1720534531301,801.05413785,3110.0,3109.9,6.43106]
[1720534531691,801.05413785,3110.0,3109.9,15.01059]
[1720534531952,801.05413785,3110.0,3109.9,13.06159]
[1720534532090,800.04723954,3110.0,3109.9,23.75927]
[1720534532293,793.94750901,3110.0,3109.9,31.85952605]
[1720534532512,792.92031209,3110.0,3109.9,32.56208901]
[1720534532699,791.10334264,3110.0,3109.9,32.56208901]
[1720534532901,791.10334264,3110.0,3109.9,9.64659]
[1720534533335,791.10334264,3110.0,3109.9,16.07765]
[1720534533693,791.10334264,3110.0,3109.9,9.64659]
[1720534533894,791.10334264,3110.0,3109.9,12.86212]
[1720534534294,791.10334264,3110.0,3109.9,9.64659]
[1720534534812,791.10334264,3110.0,3109.9,6.43106]
[1720534535208,0.77571,3109.3,3107.4,1.67641872]
[1720534535413,2.2671,3109.9,3106.6,3.94706635]
[1720534535414,0.77571,3109.8,3108.5,3.21697]
[1720534535597,0.77571,3109.8,3108.6,3.21679]
[1720534536230,0.77571,3109.4,3106.8,3.21873]
[1720534536434,2.4113,3109.1,3107.3,3.21817]
[1720534536645,2.4113,3109.1,3107.7,3.21773]
[1720534536793,2.4113,3109.1,3109.0,3.21646]
[1720534536996,2.4113,3109.1,3108.1,3.21737]
[1720534536997,791.10334264,3110.0,3109.7,3.2157]
[1720534537193,791.10334264,3110.0,3108.9,3.21647]
[1720534537400,791.10334264,3110.0,3108.0,3.21748]
[1720534537602,791.10334264,3110.0,3108.1,0.07442659]
[1720534537823,791.10334264,3110.0,3109.0,3.21637]
[1720534538044,791.10334264,3110.0,3109.3,3.2161]
[1720534538335,791.87905264,3110.0,3108.7,3.21674]
[1720534538545,791.10334264,3110.0,3108.5,3.0]
[1720534538716,791.10334264,3110.0,3108.5,3.21691]
[1720534538913,791.10334264,3110.0,3109.9,6.43106]
[1720534539127,791.10334264,3110.0,3109.9,22.49265]
[1720534539301,791.10334264,3110.0,3109.9,19.80194]
[1720534539701,791.10334264,3110.0,3109.9,15.86212]
[1720534539902,791.10334264,3110.0,3109.9,23.76694]
[1720534540112,790.08459948,3110.0,3109.9,27.30927]
[1720534540339,766.38149862,3110.0,3109.9,30.30927]
[1720534540541,760.5193813,3110.0,3109.9,28.48247]
[1720534540959,756.94163905,3110.0,3109.9,27.21594]
[1720534541266,742.94642897,3110.0,3109.9,29.34282342]
[1720534541555,731.68460813,3110.0,3109.9,31.3926094]
[1720534541716,731.26652892,3110.0,3109.9,24.4641203]
[1720534541911,730.71652892,3110.0,3109.9,26.05202342]
[1720534542251,723.47230145,3110.0,3109.9,21.71694]
[1720534542462,723.47230145,3110.0,3109.9,20.99552182]
[1720534542764,723.11830145,3110.0,3109.9,16.68688637]
[1720534542930,723.11830145,3110.0,3109.9,18.22612]
[1720534543113,723.11830145,3110.0,3109.9,13.06159]
[1720534543313,723.11830145,3110.0,3109.9,17.00141]
[1720534543516,723.11830145,3110.0,3109.9,16.27712]
[1720534543746,723.11830145,3110.0,3109.9,18.50141]
[1720534543914,723.11830145,3110.0,3109.9,18.95041]
[1720534544113,723.11830145,3110.0,3109.9,22.16594]
[1720534544349,723.11830145,3110.0,3109.9,22.49274]
[1720534544758,723.11830145,3110.0,3109.9,25.49274]
[1720534545089,723.11830145,3110.0,3109.9,27.54274]
[1720534545260,722.82538896,3110.0,3109.9,27.54274]
[1720534545553,722.82538896,3110.0,3109.9,29.25827]
[1720534545767,722.82538896,3110.0,3109.9,27.54274]
[1720534546054,690.30004167,3110.0,3109.9,26.87215515]
[1720534546253,678.5654914,3110.0,3109.9,31.5503622]
[1720534546476,665.99011673,3110.0,3109.9,27.42848358]
[1720534546636,654.26266507,3110.0,3109.9,24.21295358]
[1720534546838,654.26266507,3110.0,3109.9,28.71704185]
[1720534546839,632.22252777,3110.0,3109.9,28.71704185]
[1720534547067,624.74025496,3110.0,3109.9,32.00678852]
[1720534547275,624.43780966,3110.0,3109.9,34.60697174]
[1720534547486,622.31780966,3110.0,3109.9,25.89876339]
[1720534547643,622.31780966,3110.0,3109.9,29.87972499]
[1720534547993,621.12474052,3110.0,3109.9,26.39194999]
[1720534548135,621.12474052,3110.0,3109.9,10.87131612]
[1720534548335,621.12474052,3110.0,3109.9,13.06159]
[1720534548567,619.00474052,3110.0,3109.9,9.64659]
[1720534548769,618.70217255,3110.0,3109.9,9.64659]
[1720534549078,618.70217255,3110.0,3109.9,6.43106]
[1720534549450,617.81785165,3110.0,3109.9,12.86212]
[1720534549680,617.81785165,3110.0,3109.9,9.64659]
[1720534550042,617.66283565,3110.0,3109.9,9.64659]
[1720534550461,617.66283565,3110.0,3109.9,6.43106]
[1720534550839,617.66283565,3110.0,3109.9,12.86212]
[1720534551035,617.66283565,3110.0,3109.9,13.58641]
[1720534551237,617.66283565,3110.0,3109.9,9.64659]
[1720534551875,617.66283565,3110.0,3109.9,15.86212]
[1720534552085,617.66283565,3110.0,3109.9,23.759435]
[1720534552235,617.3667053,3110.0,3109.9,26.136235]
[1720534552441,617.3667053,3110.0,3109.9,25.19282268]
[1720534552884,614.38422067,3110.0,3109.9,25.19282268]
[1720534553640,614.38422067,3110.0,3109.9,9.96996268]
[1720534553853,614.38422067,3110.0,3109.9,9.413375]
[1720534554756,614.38422067,3110.0,3109.9,12.628905]
[1720534554952,614.38422067,3110.0,3109.9,9.413375]
[1720534555508,613.80822067,3110.0,3109.9,12.628905]
[1720534555804,613.80822067,3110.0,3109.9,14.128905]
[1720534556018,613.80822067,3110.0,3109.9,9.413375]
[1720534556868,616.23242067,3110.0,3109.9,6.197845]
[1720534557073,616.23242067,3110.0,3109.9,1.288612]
[1720534557270,616.23242067,3110.0,3108.9,3.21648]
[1720534557477,0.77571,3109.9,3109.4,3.21603]
[1720534557703,0.77571,3109.8,3109.2,3.21616]
[1720534558005,0.77571,3109.7,3109.0,3.21644]
[1720534558188,2.3913,3109.4,3108.8,3.21666]
[1720534558385,2.3913,3109.4,3109.3,3.21615]
[1720534558712,2.3913,3109.4,3109.3,6.4323]
[1720534558873,2.3913,3109.4,3109.3,3.21615]
[1720534559071,2.3913,3109.4,3109.2,3.21617]
[1720534559285,2.3913,3109.4,3109.0,4.5053]
[1720534559472,2.3913,3109.4,3109.0,1.28884]
[1720534559672,2.3913,3109.4,3109.0,4.50523]
[1720534559902,2.3913,3109.4,3109.2,3.21619]
[1720534560406,3.16701,3109.4,3109.0,1.28884]
[1720534560624,613.80822067,3110.0,3109.0,1.28884]
[1720534560775,613.80822067,3110.0,3109.9,6.43106]
[1720534561188,613.80822067,3110.0,3109.9,9.43106]
[1720534561424,613.80822067,3110.0,3109.9,12.64659]
[1720534561738,574.53135414,3110.0,3109.9,23.22344738]
[1720534561888,561.69127416,3110.0,3109.9,37.12198897]
[1720534562222,541.23086149,3110.0,3109.9,44.72275593]
[1720534562431,530.0986179,3110.0,3109.9,42.55197515]
[1720534562637,517.72537149,3110.0,3109.9,51.557789]
[1720534562786,510.12603993,3110.0,3109.9,51.68042705]
[1720534562992,500.99532258,3110.0,3109.9,51.33718191]
[1720534563213,490.8572064,3110.0,3109.9,52.95480696]
[1720534563411,486.63894436,3110.0,3109.9,52.66011161]
[1720534563611,482.66762079,3110.0,3109.9,55.92406595]
[1720534563814,482.33213176,3110.0,3109.9,56.45669536]
[1720534564028,478.3454383,3110.0,3109.9,52.96682708]
[1720534564225,473.61154417,3110.0,3109.9,55.90866386]
[1720534564446,429.2619273,3110.0,3109.9,43.60896626]
[1720534564759,378.84232795,3110.0,3109.9,45.26434421]
[1720534565055,314.19621231,3110.0,3109.9,80.50126785]
[1720534565261,301.29063119,3110.0,3109.9,82.92003672]
[1720534565417,285.08801862,3110.0,3109.9,96.61154499]
[1720534565738,266.7508297,3110.0,3109.9,96.68237554]
[1720534565894,245.23169582,3110.0,3109.9,98.78257624]
[1720534566101,236.34172478,3110.0,3109.9,103.02183458]
[1720534566295,215.02428008,3110.0,3109.9,101.88274839]
[1720534566500,210.73508323,3110.0,3109.9,101.78025969]
[1720534566727,190.19315981,3110.0,3109.9,100.42472316]
[1720534566921,186.40474169,3110.0,3109.9,106.22089076]
[1720534567121,182.99592731,3110.0,3109.9,53.7766356]
[1720534567335,180.32295017,3110.0,3109.9,50.79195705]
[1720534567498,179.74295017,3110.0,3109.9,46.45568687]
[1720534567695,179.64636852,3110.0,3109.9,54.4120165]
[1720534567898,175.75168852,3110.0,3109.9,51.18836402]
[1720534568121,172.34666493,3110.0,3109.9,47.97283402]
[1720534568321,170.22666493,3110.0,3109.9,51.25165238]
[1720534568651,167.03591265,3110.0,3109.9,47.83997533]
[1720534568795,166.99630913,3110.0,3109.9,43.89984311]
[1720534569008,166.99630913,3110.0,3109.9,46.17472148]
[1720534569009,166.80312841,3110.0,3109.9,46.17472148]
[1720534569212,166.82147571,3110.0,3109.9,24.99523999]
[1720534569461,166.82147571,3110.0,3109.9,13.79509012]
[1720534569665,166.82147571,3110.0,3109.9,6.43106]
[1720534569814,166.82147571,3110.0,3109.5,3.21594]
[1720534570121,166.82147571,3110.0,3109.3,1.5]
[1720534570122,166.82147571,3110.0,3109.3,4.71615]
[1720534570330,166.82147571,3110.0,3109.3,1.5]
[1720534570639,166.82147571,3110.0,3109.9,3.21553]
[1720534570827,166.82147571,3110.0,3109.7,3.21572]
[1720534571026,166.82147571,3110.0,3109.0,4.50521]
[1720534571212,166.82147571,3110.0,3109.0,1.35314683]
[1720534571547,166.82147571,3110.0,3109.5,3.21594]
[1720534571757,166.82147571,3110.0,3109.6,3.21576]
[1720534571913,166.82147571,3110.0,3109.9,3.21553]
[1720534572114,166.82147571,3110.0,3109.2,3.28049529]
[1720534572428,0.77571,3109.9,3109.0,1.28884]
[1720534572611,0.77571,3109.3,3108.2,0.65180004]
[1720534572812,2.3106,3108.8,3108.2,3.21729]
[1720534573171,2.3106,3108.8,3108.2,1.289076]
[1720534573466,2.3106,3109.9,3109.3,3.21613]
[1720534573671,2.3106,3109.9,3108.8,3.21665]
[1720534573878,2.3106,3109.9,3108.6,3.21687]
[1720534573879,0.77571,3109.8,3108.6,3.21684]
[1720534574148,0.77571,3109.8,3108.2,1.289076]
[1720534574149,0.77571,3109.8,3108.7,3.28109298]
[1720534574367,2.3106,3109.9,3108.3,0.0643162]
[1720534574575,2.3106,3109.9,3108.3,0.06431007]
[1720534574859,166.82147571,3110.0,3108.2,1.289076]
[1720534574860,3.15511,3109.2,3108.4,3.2813959]
[1720534575019,2.3794,3109.2,3108.4,0.06433023]
[1720534575215,2.3794,3109.2,3108.6,3.21686]
[1720534575450,2.3794,3109.2,3108.5,3.21692]
[1720534575622,0.77571,3108.9,3108.2,4.506356]
[1720534575826,0.77571,3108.7,3108.2,1.289076]
[1720534576151,0.77571,3108.7,3108.1,0.07442659]
[1720534576152,2.4532,3108.2,3108.1,0.07442659]
[1720534576359,2.4532,3108.2,3108.1,3.29181659]
[1720534576579,166.82147571,3110.0,3108.1,3.29181659]
[1720534576580,166.82147571,3110.0,3109.9,3.21553]
[1720534576788,166.82147571,3110.0,3109.9,6.43106]
[1720534576929,165.03161077,3110.0,3109.8,3.21561]
[1720534577133,165.03161077,3110.0,3109.9,6.43106]
[1720534577336,165.03161077,3110.0,3109.9,9.43106]
[1720534577571,165.03161077,3110.0,3109.9,18.86212]
[1720534577779,165.03161077,3110.0,3109.9,22.07765]
[1720534577932,165.03161077,3110.0,3109.9,24.56942049]
[1720534578129,165.03161077,3110.0,3109.9,26.72123838]
[1720534578365,165.03161077,3110.0,3109.9,27.12136604]
[1720534578578,165.03161077,3110.0,3109.9,26.46972275]
[1720534578931,165.03161077,3110.0,3109.9,21.75419275]
[1720534579172,165.03161077,3110.0,3109.9,6.90300267]
[1720534579381,165.03161077,3110.0,3109.9,3.21553]
[1720534579544,165.03161077,3110.0,3109.9,6.43106]
[1720534579746,165.03161077,3110.0,3109.9,9.64659]
[1720534579930,165.03161077,3110.0,3109.9,3.21553]
[1720534580136,165.03161077,3110.0,3109.8,3.21556]
[1720534580369,165.03161077,3110.0,3109.2,4.71618]
[1720534580370,165.03161077,3110.0,3109.6,3.21584]
[1720534580584,165.03161077,3110.0,3109.8,3.21561]
[1720534580732,165.03161077,3110.0,3109.9,9.71089204]
[1720534580933,165.03161077,3110.0,3109.9,6.43106]
[1720534581349,165.03161077,3110.0,3109.9,3.037005]
[1720534581529,165.03161077,3110.0,3109.6,3.21581]
[1720534581736,165.03161077,3110.0,3108.7,3.5388]
[1720534581737,0.77571,3109.7,3109.1,3.21635]
[1720534581955,2.4514,3109.9,3109.2,3.21622]
[1720534582147,2.4514,3109.9,3109.6,3.21584]
[1720534582372,2.4514,3109.9,3109.8,3.21564]
[1720534582885,165.03161077,3110.0,3109.9,3.21553]
[1720534583092,165.03161077,3110.0,3108.7,3.2167]
[1720534583093,165.03161077,3110.0,3109.8,3.21563]
[1720534583381,165.03161077,3110.0,3109.1,3.2163]
[1720534583680,165.03161077,3110.0,3109.2,0.06430625]
[1720534583866,165.03161077,3110.0,3109.9,3.21553]
[1720534584063,165.03161077,3110.0,3109.9,3.0]
[1720534584374,165.03161077,3110.0,3109.6,3.21581]
[1720534584375,165.80732077,3110.0,3109.6,3.21581]
[1720534584537,165.03161077,3110.0,3109.2,3.07440026]
[1720534584737,165.03161077,3110.0,3109.4,3.21596]
[1720534584938,2.4553,3109.9,3109.6,3.21583]
[1720534585197,2.4553,3109.9,3109.8,3.21564]
[1720534585736,2.4553,3109.9,3109.5,6.21594]
[1720534585935,0.77571,3109.7,3109.5,3.0]
[1720534586136,0.77571,3109.5,3108.4,1.5]
[1720534586337,2.4553,3109.9,3109.5,3.21591]
[1720534586578,2.4553,3109.9,3109.6,3.21582]
[1720534586778,165.03161077,3110.0,3109.9,9.64659]
[1720534587073,165.03161077,3110.0,3109.9,7.93106]
[1720534587074,164.96731928,3110.0,3109.9,7.93106]
[1720534587273,164.96731928,3110.0,3109.9,12.86212]
[1720534587435,162.58110162,3110.0,3109.9,15.86212]
[1720534587635,162.58110162,3110.0,3109.9,19.07765]
[1720534587836,159.59850326,3110.0,3109.9,28.77404]
[1720534588083,159.59850326,3110.0,3109.9,29.32404]
[1720534588263,159.59850326,3110.0,3109.9,30.872582]
[1720534588431,159.59850326,3110.0,3109.9,31.72249299]
[1720534588774,137.99164612,3110.0,3109.9,38.50432579]
[1720534588988,137.99164612,3110.0,3109.9,38.50226694]
[1720534589294,134.94811603,3110.0,3109.9,39.69705662]
[1720534589497,134.94811603,3110.0,3109.9,35.29926497]
[1720534590003,134.94811603,3110.0,3109.9,30.82343125]
[1720534590145,134.94811603,3110.0,3109.9,25.082513]
[1720534590455,134.94811603,3110.0,3109.9,25.90973877]
[1720534591057,134.94811603,3110.0,3109.9,29.16965357]
[1720534591255,134.94811603,3110.0,3109.9,27.46087672]
[1720534591491,134.94811603,3110.0,3109.9,28.18544877]
[1720534592057,133.15872114,3110.0,3109.9,28.18544877]
[1720534592252,133.15872114,3110.0,3109.9,29.68544877]
[1720534592479,133.15872114,3110.0,3109.9,22.21334877]
[1720534592688,132.90772114,3110.0,3109.9,22.80194]
[1720534592893,132.90772114,3110.0,3109.9,24.76010638]
[1720534593263,132.90772114,3110.0,3109.9,24.03581638]
[1720534593591,132.90772114,3110.0,3109.9,14.82028638]
[1720534593802,132.90772114,3110.0,3109.9,14.566606]
[1720534594111,132.90772114,3110.0,3109.9,13.674976]
[1720534594395,135.27342114,3110.0,3109.7,0.0743883]
[1720534594804,135.27342114,3110.0,3109.9,3.21553]
[1720534594968,135.27342114,3110.0,3109.9,6.43106]
[1720534595758,135.27342114,3110.0,3109.9,3.21553]
[1720534596111,135.27342114,3110.0,3109.7,3.2900983]
[1720534596398,135.27342114,3110.0,3109.9,6.43106]
[1720534596700,132.90772114,3110.0,3109.9,12.93650351]
[1720534596855,132.90772114,3110.0,3109.9,11.22097351]
[1720534597197,132.90772114,3110.0,3109.9,6.50544351]
[1720534597608,132.90772114,3110.0,3109.9,15.93650351]
[1720534597899,132.90772114,3110.0,3109.9,14.22097351]
[1720534598203,132.90772114,3110.0,3109.9,9.50544351]
[1720534598378,132.90772114,3110.0,3109.9,6.28991351]
[1720534598700,132.90772114,3110.0,3109.9,6.21553]
[1720534599404,132.90772114,3110.0,3109.9,3.21553]
[1720534599898,132.90772114,3110.0,3109.7,3.21564]
[1720534600073,0.77571,3109.7,3109.6,3.21584]
[1720534600254,0.77571,3109.7,3109.5,3.21594]
[1720534600455,2.2884,3109.6,3109.5,6.49620361]
[1720534600685,2.2884,3109.6,3109.5,9.64784]
[1720534600870,2.2884,3109.6,3109.5,11.14784]
[1720534601080,132.90772114,3110.0,3109.5,3.21594]
[1720534601287,132.90772114,3110.0,3109.9,6.43106]
[1720534601497,133.68343114,3110.0,3109.9,6.21553]
[1720534601994,133.68343114,3110.0,3109.9,3.21553]
[1720534602163,0.77571,3109.8,3109.5,3.21587]
[1720534602364,0.77571,3109.8,3109.4,3.0]
[1720534602593,0.77571,3109.8,3108.3,3.3221]
[1720534602594,0.77571,3109.8,3109.3,3.21607]
[1720534602778,0.77571,3109.5,3109.4,6.21601]
[1720534602996,132.90772114,3110.0,3109.4,3.21601]
[1720534602997,0.77571,3109.7,3109.4,3.21601]
[1720534603216,0.77571,3109.7,3109.4,3.21595]
[1720534603493,0.77571,3109.6,3108.0,1.5]
[1720534603701,0.77571,3109.3,3108.5,3.21696]
[1720534603882,2.254,3109.5,3108.7,3.21671]
[1720534603883,0.77571,3109.0,3108.7,3.21671]
[1720534604087,0.77571,3108.8,3108.7,3.21677]
[1720534604308,0.77571,3108.8,3108.2,3.21725]
[1720534604309,0.77571,3108.8,3108.0,1.5]
[1720534604614,0.77571,3108.8,3108.6,3.21687]
[1720534604824,0.77571,3108.8,3108.5,3.21698]
[1720534605113,0.77571,3108.8,3107.7,1.289375]
[1720534605114,0.77571,3108.2,3107.7,1.45581651]
[1720534605411,0.77571,3108.1,3107.7,1.289375]
[1720534605593,0.77571,3107.8,3107.7,1.289375]
[1720534605806,3.04681,3107.3,3107.2,3.21833]
[1720534605971,3.04681,3107.3,3106.0,1.5]
[1720534605972,0.77571,3107.0,3106.0,1.5]
[1720534606176,0.77571,3106.8,3106.7,3.21884]
[1720534606368,0.77571,3106.4,3106.2,3.21931]
[1720534606623,0.77571,3106.4,3106.3,3.21926]
[1720534606832,0.77571,3106.2,3106.1,1.289885]
[1720534607334,0.77571,3105.9,3105.1,3.22047]
[1720534607473,2.2711,3106.3,3105.2,0.06439158]
[1720534607673,0.77571,3106.5,3105.9,3.21959]
[1720534607902,0.77571,3105.8,3104.8,1.5]
[1720534608113,0.77571,3105.7,3104.9,0.06439538]
[1720534608321,0.77571,3105.3,3105.2,3.22034]
[1720534608825,0.77571,3105.2,3104.5,1.290338]
[1720534609107,2.4034,3105.7,3104.9,3.22071]
[1720534609108,0.77571,3105.0,3104.9,3.22071]
[1720534609630,0.77571,3106.0,3104.9,3.22071]
[1720534609910,0.77571,3106.2,3106.1,3.21947]
[1720534610116,0.77571,3105.6,3105.5,3.22009]
[1720534610282,0.77571,3105.8,3105.7,3.21988]
[1720534610485,0.77571,3106.0,3104.9,2.790304]
[1720534610799,2.365,3106.4,3106.0,6.43914]
[1720534610800,0.77571,3106.1,3106.0,6.43914]
[1720534611117,2.365,3106.4,3105.0,3.0745009]
[1720534611118,0.77571,3105.4,3105.0,3.0745009]
[1720534611321,0.77571,3105.4,3104.8,3.22079]
[1720534611504,0.77571,3105.1,3105.0,6.44122]
[1720534611826,0.77571,3105.6,3105.3,6.4406]
[1720534611970,0.77571,3106.1,3106.0,3.21957]
[1720534612177,0.77571,3106.1,3106.0,6.43914]
[1720534612406,2.365,3106.4,3106.3,6.43852]
[1720534612613,0.77571,3106.4,3105.6,0.06438277]
[1720534612825,0.77571,3106.4,3105.5,1.5]
[1720534612826,0.77571,3106.2,3106.1,3.21938]
[1720534612971,0.77571,3106.2,3105.1,3.22045]
[1720534612972,0.77571,3105.7,3105.6,3.21996]
[1720534613174,0.77571,3105.7,3105.4,3.2201]
[1720534613175,0.77571,3105.5,3105.4,3.2201]
[1720534613881,0.77571,3105.5,3105.4,6.44029]
[1720534615027,0.61570099,3105.5,3105.4,3.2201]
[1720534615528,0.61570099,3105.5,3105.4,6.44029]
[1720534615732,0.61570099,3105.8,3105.0,0.06440511]
[1720534616021,0.61570099,3105.8,3105.7,3.21988]
[1720534616221,0.61570099,3106.2,3106.1,6.43894]
[1720534616391,2.3783,3107.2,3105.2,3.22039]
[1720534616392,0.61570099,3106.3,3105.7,1.5]
[1720534616592,0.61570099,3106.3,3106.2,3.21936]
[1720534616818,0.61570099,3106.3,3105.7,7.71986]
[1720534616819,0.61570099,3106.7,3106.6,6.4379]
[1720534617020,2.3783,3107.2,3106.8,6.43748]
[1720534617021,0.61570099,3106.9,3106.8,6.43748]
[1720534617390,0.61570099,3106.9,3106.8,3.21874]
[1720534617587,0.61570099,3106.6,3106.5,3.21895]
[1720534617797,2.3783,3107.2,3105.1,3.54252]
[1720534617798,2.99400099,3107.2,3107.1,3.21843]
[1720534618128,0.61570099,3107.8,3107.6,3.21791]
[1720534618336,0.61570099,3107.8,3107.7,3.21781]
[1720534618628,0.61570099,3107.0,3106.9,3.21864]
[1720534618840,0.61570099,3107.3,3106.2,6.21934]
[1720534618999,2.87380099,3108.0,3107.9,3.2176]
[1720534619320,0.61570099,3108.0,3107.9,6.4352]
[1720534619535,0.08044088,3109.6,3107.5,3.21795]
[1720534619536,0.61570099,3108.7,3108.6,3.21688]
[1720534619690,0.61570099,3108.4,3108.3,3.21719]
[1720534619887,2.94200099,3108.8,3108.7,3.21677]
[1720534620112,2.94200099,3109.5,3108.4,3.28135713]
[1720534620328,1.7419,3111.1,3109.6,6.43168]
[1720534620329,0.61570099,3109.7,3109.6,6.43168]
[1720534620736,2.3263,3110.3,3109.7,6.43148]
[1720534620737,0.61570099,3109.8,3109.7,6.43148]
[1720534620885,0.61570099,3110.1,3109.3,1.56431414]
[1720534621091,0.61570099,3110.1,3109.9,3.21553]
[1720534621291,133.52342213,3110.0,3109.9,6.43106]
[1720534621527,132.90772114,3110.0,3109.9,9.64659]
[1720534621849,132.90772114,3110.0,3109.9,16.18422]
[1720534621988,132.90772114,3110.0,3109.9,24.04957901]
[1720534621989,124.1447448,3110.0,3109.9,24.04957901]
[1720534622193,113.64565835,3110.0,3109.9,21.44975]
[1720534622421,113.64565835,3110.0,3109.9,20.89975]
[1720534622587,112.59054835,3110.0,3109.9,22.61528]
[1720534622795,112.59054835,3110.0,3109.9,23.16528]
[1720534623223,104.70366172,3110.0,3109.9,19.94975]
[1720534623387,104.70366172,3110.0,3109.9,25.8873857]
[1720534623388,74.38972268,3110.0,3109.9,25.8873857]
[1720534623604,74.38972268,3110.0,3109.9,23.04835722]
[1720534623819,74.38972268,3110.0,3109.9,10.06313211]
[1720534624030,74.38972268,3110.0,3109.9,6.43106]
[1720534625120,74.38972268,3110.0,3109.9,12.86212]
[1720534625533,74.38972268,3110.0,3109.9,6.43106]
[1720534625719,74.38972268,3110.0,3109.9,6.275057]
[1720534625931,74.38972268,3110.0,3109.9,9.490587]
[1720534626099,74.38972268,3110.0,3109.9,12.706117]
[1720534626299,74.38972268,3110.0,3109.9,15.921647]
[1720534626506,72.59991532,3110.0,3109.9,15.921647]
[1720534626711,72.59991532,3110.0,3109.9,12.706117]
[1720534626941,71.71024399,3110.0,3109.9,21.921647]
[1720534627298,71.71024399,3110.0,3109.9,15.706117]
[1720534628001,71.71024399,3110.0,3109.9,12.490587]
[1720534628206,71.71024399,3110.0,3109.9,13.990587]
[1720534628522,71.71024399,3110.0,3109.9,21.921647]
[1720534628709,71.31409086,3110.0,3109.9,21.921647]
[1720534628937,71.31409086,3110.0,3109.9,22.80594601]
[1720534629138,71.31409086,3110.0,3109.9,22.471647]
[1720534629323,71.31409086,3110.0,3109.9,21.921647]
[1720534629526,71.31409086,3110.0,3109.9,18.921647]
[1720534629725,71.31409086,3110.0,3109.9,20.421647]
[1720534629951,71.31409086,3110.0,3109.9,18.921647]
[1720534631015,71.31409086,3110.0,3109.9,9.490587]
[1720534631229,71.31409086,3110.0,3109.7,3.21568]
[1720534631575,71.31409086,3110.0,3109.9,6.43106]
[1720534631855,71.31409086,3110.0,3109.9,3.21553]
[1720534632026,71.31409086,3110.0,3109.9,6.43106]
[1720534632233,71.31409086,3110.0,3109.9,3.21553]
[1720534632431,71.31409086,3110.0,3109.7,3.21568]
[1720534632432,0.61570099,3109.8,3109.7,3.21568]
[1720534632830,0.61570099,3109.8,3109.4,3.21603]
[1720534633037,0.61570099,3109.8,3109.6,3.21581]
[1720534633263,0.61570099,3109.8,3108.7,0.0643122]
[1720534633440,0.61570099,3109.5,3109.4,3.21599]
[1720534633931,71.31409086,3110.0,3108.9,3.21657]
[1720534633932,0.61570099,3109.0,3108.9,3.21657]
[1720534634259,2.92050099,3109.0,3108.9,3.21657]
[1720534634482,0.61570099,3108.7,3108.6,3.21686]
[1720534634636,0.61570099,3108.9,3108.8,3.21667]
[1720534634837,0.61570099,3108.9,3107.9,1.56433288]
[1720534635070,2.3048,3109.0,3108.9,6.43314]
[1720534635217,2.3048,3109.0,3108.4,3.21708]
[1720534635218,0.61570099,3108.5,3108.4,3.21708]
[1720534635536,0.61570099,3108.3,3108.2,3.21719]
[1720534635720,0.61570099,3108.3,3108.0,0.07442899]
[1720534635721,0.61570099,3108.3,3108.1,3.21736]
[1720534635925,0.61570099,3108.1,3108.0,0.07442899]
[1720534636117,0.61570099,3107.7,3107.6,3.21791]
[1720534636341,0.61570099,3107.7,3107.6,6.43582]
[1720534636563,0.61570099,3107.9,3107.8,3.21771]
[1720534636734,0.61570099,3107.9,3107.6,3.21791]
[1720534636936,0.61570099,3107.3,3106.9,0.33638451]
[1720534637136,0.61570099,3107.5,3107.4,3.21812]
[1720534638339,0.61570099,3107.5,3107.3,3.21822]
[1720534638664,0.61570099,3108.4,3107.4,0.06436513]
[1720534638848,3.03940099,3108.7,3108.6,3.21688]
[1720534639050,0.61570099,3109.3,3109.2,3.21626]
[1720534639241,0.61570099,3108.6,3108.0,1.5]
[1720534639440,0.61570099,3108.4,3107.2,0.06433607]
[1720534639643,0.61570099,3107.8,3107.3,3.21821]
[1720534639954,2.3367,3108.1,3108.0,6.435]
[1720534640144,1.7575,3111.1,3108.8,3.21667]
[1720534640145,2.95240099,3108.9,3108.8,3.21667]
[1720534640356,2.95240099,3108.9,3108.7,3.21676]
[1720534640896,0.61570099,3107.6,3106.8,3.21871]
[1720534641039,0.61570099,3107.6,3107.4,3.21812]
[1720534641040,2.4284,3107.5,3107.4,3.21812]
[1720534641241,2.26903206,3107.5,3107.4,3.21812]
[1720534641549,2.26592239,3107.5,3107.4,3.21812]
[1720534642086,0.61570099,3107.3,3107.2,3.21826]
[1720534642438,0.61570099,3106.7,3106.6,3.21888]
[1720534642747,2.26592239,3107.5,3106.8,6.43748]
[1720534642748,0.61570099,3106.9,3106.8,6.43748]
[1720534642950,0.61570099,3106.9,3106.8,3.21874]
[1720534643153,0.61570099,3106.9,3106.6,3.21893]
[1720534643154,0.61570099,3106.8,3106.7,3.21883]
[1720534643548,0.61570099,3106.8,3106.7,3.21884]
[1720534644136,0.61570099,3106.0,3104.5,1.61178166]